bitfinex/quotes_ETHUSD_20250908
["timestamp","ask_amount","ask_price","bid_price","bid_amount"]
[1757348981367,47.49121468,4361.2,4361.1,24.63524569]
[1757348981534,47.80751468,4361.2,4361.1,22.3073334]
[1757348981739,50.66161468,4361.2,4361.1,20.8318603]
[1757348982264,51.89161468,4361.2,4361.1,23.8318603]
[1757348982569,51.89161468,4361.2,4361.1,24.0609603]
[1757348983652,53.12161468,4361.2,4361.1,24.0609603]
[1757348985153,54.35161468,4361.2,4361.1,24.0609603]
[1757348985955,54.35161468,4361.2,4361.1,24.34454569]
[1757348986955,55.58161468,4361.2,4361.1,24.34454569]
[1757348987480,55.58161468,4361.2,4361.1,24.0609603]
[1757348988270,56.81161468,4361.2,4361.1,24.0609603]
[1757348989569,58.04161468,4361.2,4361.1,24.0609603]
[1757348990967,59.27161468,4361.2,4361.1,24.0609603]
[1757348991998,56.10121468,4361.2,4361.1,24.34454569]
[1757348992137,57.33121468,4361.2,4361.1,24.34454569]
[1757348992332,57.64751468,4361.2,4361.1,24.34454569]
[1757348992741,57.33121468,4361.2,4361.1,24.34454569]
[1757348992940,57.33121468,4361.2,4361.1,24.89718527]
[1757348993248,57.64751468,4361.2,4361.1,24.59328527]
[1757348993456,60.50161468,4361.2,4361.1,24.34454569]
[1757348993679,61.73161468,4361.2,4361.1,20.48154569]
[1757348993841,63.99952265,4361.2,4361.1,21.42446083]
[1757348994176,63.99952265,4361.2,4361.1,14.56146083]
[1757348994475,64.79152265,4361.2,4361.1,18.42346083]
[1757348994681,64.79152265,4361.2,4361.1,21.42346083]
[1757348995183,66.02152265,4361.2,4361.1,21.42346083]
[1757348995344,62.49651468,4361.2,4361.1,21.42346083]
[1757348995548,60.10751468,4361.2,4361.1,24.24878527]
[1757348996371,61.02121468,4361.2,4361.1,24.55268527]
[1757348996684,61.02121468,4361.2,4361.1,25.01018527]
[1757348996986,61.02121468,4361.2,4361.1,25.23928527]
[1757348997557,61.02121468,4361.2,4361.1,24.53304569]
[1757348997765,62.25121468,4361.2,4361.1,24.53304569]
[1757348997983,62.25121468,4361.2,4361.1,24.22914569]
[1757348999247,63.48121468,4361.2,4361.1,24.22914569]
[1757349000381,66.18651468,4361.2,4361.1,24.00004569]
[1757349000603,67.88161468,4361.2,4361.1,19.8544603]
[1757349000810,67.41651468,4361.2,4361.1,23.7164603]
[1757349000969,64.71121468,4361.2,4361.1,24.30394569]
[1757349001852,65.94121468,4361.2,4361.1,24.30394569]
[1757349002159,66.25751468,4361.2,4361.1,24.00004569]
[1757349003180,67.48751468,4361.2,4361.1,24.00004569]
[1757349003596,67.48751468,4361.2,4361.1,20.13804569]
[1757349003772,69.87651468,4361.2,4361.1,20.13804569]
[1757349003974,72.14442265,4361.2,4361.1,23.7164603]
[1757349004178,72.60952265,4361.2,4361.1,23.7164603]
[1757349004497,72.60952265,4361.2,4361.1,21.42346083]
[1757349004676,73.83952265,4361.2,4361.1,21.42346083]
[1757349004872,73.83952265,4361.2,4361.1,17.56146083]
[1757349005073,73.83952265,4361.2,4361.1,21.42346083]
[1757349005495,73.83952265,4361.2,4361.1,23.7164603]
[1757349005716,68.40121468,4361.2,4361.1,24.30394569]
[1757349006016,68.40121468,4361.2,4361.1,25.23928527]
[1757349006202,69.63121468,4361.2,4361.1,25.23928527]
[1757349007003,60.79494998,4361.2,4361.1,27.71228527]
[1757349007305,0.001,4361.7,4361.6,2.29273661]
[1757349007597,0.001,4361.7,4361.6,11.841722]
[1757349007804,0.001,4361.7,4361.6,15.077822]
[1757349009212,0.001,4361.7,4361.6,14.623622]
[1757349009379,0.001,4361.7,4361.6,12.150622]
[1757349009587,0.3013,4361.7,4361.6,7.979722]
[1757349009893,0.001,4361.7,4361.6,9.26913661]
[1757349010205,1.231,4361.7,4361.6,9.861622]
[1757349010628,1.231,4361.7,4361.6,10.315822]
[1757349010806,1.231,4361.7,4361.6,13.03756158]
[1757349011491,2.461,4361.7,4361.6,13.03756158]
[1757349012106,2.461,4361.7,4361.6,13.26666158]
[1757349012306,2.461,4361.7,4361.6,13.017922]
[1757349012692,2.461,4361.7,4361.6,9.861622]
[1757349012896,3.691,4361.7,4361.6,9.861622]
[1757349013704,3.691,4361.7,4361.6,10.315822]
[1757349013936,3.691,4361.7,4361.6,12.788822]
[1757349014435,5.2213,4361.7,4361.6,9.551722]
[1757349014929,5.2213,4361.7,4361.6,10.2391277]
[1757349015306,7.6155,4361.7,4361.6,6.09454231]
[1757349015513,8.0822,4361.7,4361.6,9.95554231]
[1757349015821,6.4513,4361.7,4361.6,9.95554231]
[1757349016435,6.151,4361.7,4361.6,10.26444231]
[1757349016732,6.151,4361.7,4361.6,10.5480277]
[1757349017036,7.381,4361.7,4361.6,10.2391277]
[1757349018097,7.6813,4361.7,4361.6,10.2391277]
[1757349018698,8.611,4361.7,4361.6,10.5480277]
[1757349019117,8.611,4361.7,4361.6,10.7771277]
[1757349019866,8.611,4361.7,4361.6,10.4682277]
[1757349020048,10.1413,4361.7,4361.6,10.4682277]
[1757349020676,9.841,4361.7,4361.6,13.2501277]
[1757349020839,9.841,4361.7,4361.6,13.72396728]
[1757349021167,9.841,4361.7,4361.6,6.6072277]
[1757349021462,11.071,4361.7,4361.6,10.4682277]
[1757349023067,12.301,4361.7,4361.6,10.7771277]
[1757349023269,12.301,4361.7,4361.6,11.2313277]
[1757349023430,17.301,4361.7,4361.6,11.2313277]
[1757349024138,17.301,4361.7,4361.6,10.7771277]
[1757349024340,21.2255,4361.7,4361.6,0.6874057]
[1757349024553,23.5454,4361.7,4361.6,4.5484057]
[1757349024756,23.5454,4361.7,4361.6,7.5484057]
[1757349025539,23.5454,4361.7,4361.6,9.84114231]
[1757349025735,24.7754,4361.7,4361.6,9.84114231]
[1757349025937,22.4555,4361.7,4361.6,9.84114231]
[1757349026404,20.0613,4361.7,4361.6,9.84114231]
[1757349026860,20.0613,4361.7,4361.6,7.5484057]
[1757349027070,24.1522,4361.7,4361.6,7.5484057]
[1757349027270,24.1522,4361.7,4361.6,9.84114231]
[1757349027465,24.1522,4361.7,4361.6,7.5484057]
[1757349027854,24.49316316,4361.7,4361.6,3.6874057]
[1757349028188,0.792,4361.6,4361.1,13.874]
[1757349028391,0.792,4361.4,4361.2,3.86]
[1757349028591,0.792,4361.4,4361.3,3.0]
[1757349029015,0.3003,4361.4,4361.3,3.0]
[1757349029222,3.08494689,4361.2,4361.1,13.874]
[1757349029368,3.38524689,4361.2,4361.1,17.734]
[1757349029574,6.24614689,4361.2,4361.1,13.874]
[1757349029805,7.47614689,4361.2,4361.1,20.734]
[1757349029973,8.67983989,4361.2,4361.1,20.734]
[1757349030168,8.67983989,4361.2,4361.1,7.278]
[1757349030388,8.67983989,4361.2,4361.1,11.139]
[1757349031087,9.90983989,4361.2,4361.1,11.139]
[1757349032117,9.90983989,4361.2,4361.1,7.278]
[1757349032408,11.13983989,4361.2,4361.1,7.278]
[1757349032607,11.13983989,4361.2,4361.1,11.139]
[1757349033822,12.36983989,4361.2,4361.1,11.139]
[1757349035336,0.792,4361.1,4360.8,0.025]
[1757349035548,3.08510463,4360.9,4360.8,0.025]
[1757349035695,3.38540463,4360.9,4360.8,5.645]
[1757349036031,6.24630463,4360.9,4360.8,5.645]
[1757349036609,6.21760463,4360.9,4360.8,5.645]
[1757349036818,3.9245,4360.9,4360.8,5.645]
[1757349037107,6.21760463,4360.9,4360.8,5.645]
[1757349037329,7.46960463,4360.9,4360.8,5.645]
[1757349037515,9.10203519,4360.9,4360.8,1.784]
[1757349037728,9.10203519,4360.9,4360.8,5.645]
[1757349037935,10.33203519,4360.9,4360.8,5.645]
[1757349038136,10.33203519,4360.9,4360.8,1.784]
[1757349038345,10.33203519,4360.9,4360.8,5.645]
[1757349039554,11.56203519,4360.9,4360.8,5.645]
[1757349039747,11.56203519,4360.9,4360.8,1.784]
[1757349040050,11.56203519,4360.9,4360.8,5.645]
[1757349040746,12.79203519,4360.9,4360.8,5.645]
[1757349042022,14.02203519,4360.9,4360.8,5.645]
[1757349043454,15.25203519,4360.9,4360.8,5.645]
[1757349043659,15.25203519,4360.9,4360.8,5.646]
[1757349043816,14.79203519,4360.9,4360.8,5.646]
[1757349044015,9.97130463,4360.9,4360.8,5.646]
[1757349044234,10.76330463,4360.9,4360.8,5.646]
[1757349045049,11.99330463,4360.9,4360.8,5.646]
[1757349045257,14.33550463,4360.9,4360.8,5.646]
[1757349045651,14.79550463,4360.9,4360.8,5.646]
[1757349045845,17.0634126,4360.9,4360.8,5.646]
[1757349046351,17.0634126,4360.9,4360.8,1.784]
[1757349046564,18.2934126,4360.9,4360.8,5.646]
[1757349048059,17.8334126,4360.9,4360.8,5.646]
[1757349048381,16.7212126,4360.9,4360.8,5.646]
[1757349049772,17.9512126,4360.9,4360.8,5.646]
[1757349050247,14.59310463,4360.9,4360.8,8.7484]
[1757349050788,12.3,4360.9,4360.8,11.7484]
[1757349050941,13.6444,4360.9,4360.8,12.03198539]
[1757349052282,13.6444,4360.9,4360.8,11.7484]
[1757349052477,14.8744,4360.9,4360.8,11.7484]
[1757349053884,16.1044,4360.9,4360.8,11.7484]
[1757349055356,17.3344,4360.9,4360.8,11.7484]
[1757349056663,18.5644,4360.9,4360.8,11.7484]
[1757349057677,18.5644,4360.9,4360.8,8.933]
[1757349058063,19.7944,4360.9,4360.8,8.933]
[1757349058364,19.7944,4360.9,4360.8,11.7504]
[1757349058866,19.7944,4360.9,4360.8,12.03398539]
[1757349059454,19.7944,4360.9,4360.8,9.21858539]
[1757349059455,21.0244,4360.9,4360.8,9.21858539]
[1757349059791,21.0244,4360.9,4360.8,8.934]
[1757349060154,21.0244,4360.9,4360.8,9.3763]
[1757349060971,22.2544,4360.9,4360.8,9.3763]
[1757349061305,23.3446,4360.9,4360.8,4.786]
[1757349061472,30.2478126,4360.9,4360.8,8.647]
[1757349062096,30.2478126,4360.9,4360.8,4.786]
[1757349062300,31.9378126,4360.9,4360.8,8.647]
[1757349063884,33.1678126,4360.9,4360.8,8.647]
[1757349064775,33.1678126,4360.9,4360.8,4.786]
[1757349065105,33.1678126,4360.9,4360.8,5.647]
[1757349065305,34.3978126,4360.9,4360.8,5.647]
[1757349065880,33.9378126,4360.9,4360.8,5.647]
[1757349066112,31.2974126,4360.9,4360.8,8.647]
[1757349066603,31.5956126,4360.9,4360.8,8.647]
[1757349066791,35.5889126,4360.9,4360.8,4.786]
[1757349066990,35.5889126,4360.9,4360.8,8.647]
[1757349067192,35.5889126,4360.9,4360.8,1.786]
[1757349067598,35.5889126,4360.9,4360.8,5.647]
[1757349068199,36.8189126,4360.9,4360.8,1.786]
[1757349068511,36.8189126,4360.9,4360.8,5.647]
[1757349069179,2.2932098,4360.7,4360.6,1e-08]
[1757349069381,3.0852098,4360.7,4360.6,5.62000001]
[1757349069714,3.0852098,4360.7,4360.2,1.759]
[1757349069715,3.08542017,4360.3,4360.2,1.759]
[1757349069902,6.13912017,4360.3,4360.2,5.62]
[1757349070098,7.03160723,4360.3,4360.2,5.62]
[1757349070933,4.26830723,4360.3,4360.2,5.62]
[1757349071096,5.49830723,4360.3,4360.2,5.62]
[1757349071727,7.81730723,4360.3,4360.2,5.62]
[1757349071889,8.26160723,4360.3,4360.2,5.62]
[1757349072088,8.26160723,4360.3,4360.2,1.759]
[1757349072596,8.26160723,4360.3,4360.2,5.62]
[1757349072597,9.49160723,4360.3,4360.2,5.62]
[1757349072777,9.49160723,4360.3,4360.2,1.759]
[1757349072977,9.49160723,4360.3,4360.2,5.62]
[1757349074111,10.72160723,4360.3,4360.2,5.62]
[1757349074499,10.72160723,4360.3,4360.2,1.759]
[1757349075010,10.72160723,4360.3,4360.2,4.101]
[1757349075378,11.95160723,4360.3,4360.2,4.101]
[1757349076187,11.95160723,4360.3,4359.1,0.02]
[1757349076188,3.19987277,4360.2,4359.1,0.02]
[1757349076406,0.792,4359.5,4359.1,0.02]
[1757349076715,3.37639889,4359.2,4359.1,0.02]
[1757349076915,3.37639889,4359.2,4359.1,5.572]
[1757349077419,3.08599889,4359.2,4359.1,8.6468]
[1757349078113,2.022,4359.2,4359.1,8.6468]
[1757349078620,1.23,4359.2,4359.1,8.6468]
[1757349078781,1.23,4359.2,4359.1,15.9068]
[1757349079117,1.23,4359.2,4359.1,13.3548]
[1757349079319,4.72939889,4359.2,4359.1,10.28]
[1757349079618,5.95939889,4359.2,4359.1,14.141]
[1757349081197,7.18939889,4359.2,4359.1,14.141]
[1757349081428,6.77599889,4359.2,4359.1,14.141]
[1757349081781,7.06639889,4359.2,4359.1,14.141]
[1757349082015,7.06639889,4359.2,4359.1,10.28]
[1757349082217,7.06639889,4359.2,4359.1,14.141]
[1757349082718,8.29639889,4359.2,4359.1,14.141]
[1757349083026,9.35542984,4359.2,4359.1,14.141]
[1757349084179,10.58542984,4359.2,4359.1,14.141]
[1757349084384,12.90442984,4359.2,4359.1,14.141]
[1757349085625,11.81542984,4359.2,4359.1,14.141]
[1757349085793,9.23103095,4359.2,4359.1,14.141]
[1757349085992,11.52502984,4359.2,4359.1,14.4439]
[1757349086926,12.75502984,4359.2,4359.1,14.4439]
[1757349088432,13.98502984,4359.2,4359.1,14.4439]
[1757349089388,13.98502984,4359.2,4359.1,14.141]
[1757349089795,15.50542984,4359.2,4359.1,14.141]
[1757349090495,15.50542984,4359.2,4359.1,10.28]
[1757349090898,15.21502984,4359.2,4359.1,14.141]
[1757349091214,16.44502984,4359.2,4359.1,14.4439]
[1757349091589,16.44502984,4359.2,4359.1,14.141]
[1757349092037,13.092,4359.2,4359.1,16.7632]
[1757349092237,13.092,4359.2,4359.1,17.2158]
[1757349092454,13.53,4359.2,4359.1,17.49926048]
[1757349092815,13.53,4359.2,4359.1,19.793312]
[1757349093197,13.6444,4359.2,4359.1,19.793312]
[1757349093567,13.6444,4359.2,4359.1,17.49926048]
[1757349093768,14.8744,4359.2,4359.1,13.63826048]
[1757349094126,14.8744,4359.2,4359.1,13.18566048]
[1757349094316,15.6664,4359.2,4359.1,14.4439]
[1757349094575,18.58267189,4359.2,4359.1,14.4439]
[1757349094751,15.6664,4359.2,4359.1,14.4439]
[1757349095151,16.8964,4359.2,4359.1,14.4439]
[1757349095559,19.19039889,4359.2,4359.1,10.28]
[1757349095774,19.19039889,4359.2,4359.1,14.141]
[1757349095940,19.19039889,4359.2,4359.1,14.143]
[1757349096558,20.42039889,4359.2,4359.1,14.4459]
[1757349096966,20.42039889,4359.2,4359.1,14.143]
[1757349098076,21.65039889,4359.2,4359.1,10.282]
[1757349098256,21.65039889,4359.2,4359.1,14.143]
[1757349098664,21.93609889,4359.2,4359.1,14.143]
[1757349099179,27.04030686,4359.2,4359.1,11.143]
[1757349099375,28.27030686,4359.2,4359.1,11.143]
[1757349100990,29.50030686,4359.2,4359.1,11.143]
[1757349101191,26.66400686,4359.2,4359.1,11.143]
[1757349101346,26.37830686,4359.2,4359.1,11.143]
[1757349101546,26.37830686,4359.2,4359.1,11.89]
[1757349102210,27.60830686,4359.2,4359.1,11.89]
[1757349102419,27.89400686,4359.2,4359.1,11.143]
[1757349102761,30.73030686,4359.2,4359.1,11.143]
[1757349103595,31.53100686,4359.2,4359.1,11.143]
[1757349103811,31.53100686,4359.2,4359.1,7.282]
[1757349103958,31.96030686,4359.2,4359.1,11.142]
[1757349104204,31.96030686,4359.2,4359.1,7.282]
[1757349104396,31.96030686,4359.2,4359.1,11.142]
[1757349104752,0.792,4358.9,4358.8,0.027]
[1757349105043,2.29420941,4358.8,4358.6,0.002]
[1757349105249,5.49741997,4358.4,4358.3,0.002]
[1757349105398,5.49741997,4358.4,4358.3,1.762]
[1757349105603,9.42716344,4358.4,4358.3,1.762]
[1757349106145,9.42716344,4358.4,4358.3,5.622]
[1757349106439,10.65716344,4358.4,4358.3,5.622]
[1757349107345,10.65716344,4358.4,4358.3,5.623]
[1757349107954,11.88716344,4358.4,4358.3,5.623]
[1757349109259,11.88716344,4358.4,4358.3,6.37]
[1757349109260,4.49774347,4358.4,4358.3,6.37]
[1757349109426,5.98441997,4358.4,4358.3,8.676]
[1757349109624,6.77641997,4358.4,4358.3,8.676]
[1757349109830,5.98441997,4358.4,4358.3,8.676]
[1757349110247,5.98441997,4358.4,4358.3,6.37]
[1757349110248,6.77641997,4358.4,4358.3,6.37]
[1757349110559,9.19919467,4358.4,4358.3,5.623]
[1757349111137,11.60619467,4358.4,4358.3,1.762]
[1757349111337,12.03549467,4358.4,4358.3,5.623]
[1757349111543,11.60619467,4358.4,4358.3,5.623]
[1757349111965,12.83619467,4358.4,4358.3,5.623]
[1757349113360,14.06619467,4358.4,4358.3,5.623]
[1757349113661,11.37349467,4358.4,4358.3,5.623]
[1757349114328,11.65919467,4358.4,4358.3,5.623]
[1757349114757,12.88919467,4358.4,4358.3,5.623]
[1757349115358,15.29619467,4358.4,4358.3,5.623]
[1757349115737,12.88919467,4358.4,4358.3,5.623]
[1757349116172,14.11919467,4358.4,4358.3,5.623]
[1757349117737,17.75619467,4358.4,4358.3,5.623]
[1757349117947,15.34919467,4358.4,4358.3,5.623]
[1757349119132,17.75619467,4358.4,4358.3,5.623]
[1757349119333,19.41549467,4358.4,4358.3,5.623]
[1757349119552,18.98619467,4358.4,4358.3,1.762]
[1757349119740,19.41549467,4358.4,4358.3,5.623]
[1757349120360,16.29349467,4358.4,4358.3,5.931]
[1757349120877,17.52349467,4358.4,4358.3,5.931]
[1757349121838,17.52349467,4358.4,4358.3,6.37]
[1757349122267,18.75349467,4358.4,4358.3,6.37]
[1757349122651,18.75349467,4358.4,4358.3,5.931]
[1757349123650,19.98349467,4358.4,4358.3,5.623]
[1757349125180,21.49919467,4358.4,4358.3,1.762]
[1757349125484,23.90619467,4358.4,4358.3,5.622]
[1757349125981,21.49919467,4358.4,4358.3,5.622]
[1757349126342,21.21349467,4358.4,4358.3,5.93]
[1757349126556,21.53641997,4358.4,4358.3,8.6923]
[1757349126969,21.53641997,4358.4,4358.3,6.3863]
[1757349127678,21.53641997,4358.4,4358.3,8.7786]
[1757349127867,22.76641997,4358.4,4358.3,5.93]
[1757349128066,23.06211997,4358.4,4358.3,1.762]
[1757349128246,25.33002794,4358.4,4358.3,5.622]
[1757349128682,25.03432794,4358.4,4358.3,5.622]
[1757349128842,25.33002794,4358.4,4358.3,1.762]
[1757349129042,28.03722794,4358.4,4358.3,5.622]
[1757349129248,29.26722794,4358.4,4358.3,5.622]
[1757349130497,27.79002794,4358.4,4358.3,5.622]
[1757349131305,30.04142794,4358.4,4358.3,5.622]
[1757349131468,27.79002794,4358.4,4358.3,5.622]
[1757349131807,30.49722794,4358.4,4358.3,5.622]
[1757349131967,31.72722794,4358.4,4358.3,5.622]
[1757349133012,31.27142794,4358.4,4358.3,5.622]
[1757349133383,30.25002794,4358.4,4358.3,5.622]
[1757349134222,32.50142794,4358.4,4358.3,5.622]
[1757349134593,33.73142794,4358.4,4358.3,1.762]
[1757349134798,33.73142794,4358.4,4358.3,5.622]
[1757349135181,33.73142794,4358.4,4358.3,1.762]
[1757349135381,33.73142794,4358.4,4358.3,5.622]
[1757349136087,34.96142794,4358.4,4358.3,5.622]
[1757349136902,32.71002794,4358.4,4358.3,5.622]
[1757349137073,35.12102794,4358.4,4358.3,5.622]
[1757349137278,32.71002794,4358.4,4358.3,5.622]
[1757349137505,33.94002794,4358.4,4358.3,5.622]
[1757349138805,35.17002794,4358.4,4358.3,5.622]
[1757349139702,3.08652526,4358.2,4358.1,1.781]
[1757349139901,5.32463323,4358.2,4358.1,5.641]
[1757349140213,6.55463323,4358.2,4358.1,5.641]
[1757349141180,6.55463323,4358.2,4358.1,5.933]
[1757349141382,6.55463323,4358.2,4358.1,8.7816]
[1757349141601,7.78463323,4358.2,4358.1,8.7816]
[1757349142196,7.78463323,4358.2,4358.1,6.3893]
[1757349142398,8.08033323,4358.2,4358.1,1.781]
[1757349142604,8.08033323,4358.2,4358.1,5.641]
[1757349142798,8.08033323,4358.2,4358.1,1.781]
[1757349143014,9.31033323,4358.2,4358.1,5.641]
[1757349144126,9.01463323,4358.2,4358.1,5.641]
[1757349144312,10.24463323,4358.2,4358.1,5.933]
[1757349146132,11.47463323,4358.2,4358.1,5.933]
[1757349147031,11.47463323,4358.2,4358.1,8.3253]
[1757349147200,11.47463323,4358.2,4358.1,8.7816]
[1757349147404,12.70463323,4358.2,4358.1,8.7816]
[1757349147903,12.70463323,4358.2,4358.1,5.933]
[1757349148726,13.93463323,4358.2,4358.1,5.933]
[1757349148927,14.23033323,4358.2,4358.1,1.781]
[1757349149132,14.23033323,4358.2,4357.6,1e-08]
[1757349149133,0.792,4357.9,4357.6,1e-08]
[1757349149430,0.792,4357.9,4356.0,1.761]
[1757349149431,2.29536794,4356.6,4356.0,1.761]
[1757349149631,3.08752601,4356.3,4356.2,0.115]
[1757349149854,3.08757871,4356.2,4356.0,1.761]
[1757349149986,3.73465918,4356.2,4356.1,3.879]
[1757349150190,3.73465918,4356.2,4356.1,4.171]
[1757349151120,4.03035918,4356.2,4356.1,3.879]
[1757349151434,5.26035918,4356.2,4356.1,3.879]
[1757349151789,5.26035918,4356.2,4356.1,0.02]
[1757349151989,5.26035918,4356.2,4356.1,3.879]
[1757349152223,5.26035918,4356.2,4356.1,0.02]
[1757349152428,5.26035918,4356.2,4356.1,3.879]
[1757349152894,6.19465918,4356.2,4356.1,3.879]
[1757349153102,6.49035918,4356.2,4356.1,3.879]
[1757349153966,6.19465918,4356.2,4356.1,4.172]
[1757349154109,5.54757871,4356.2,4356.1,7.0206]
[1757349154441,4.482,4356.2,4356.1,7.0206]
[1757349154614,3.69,4356.2,4356.1,10.30406048]
[1757349154810,4.482,4356.2,4356.1,10.30406048]
[1757349155311,3.69,4356.2,4356.1,10.30406048]
[1757349155715,4.92,4356.2,4356.1,10.30406048]
[1757349157238,6.15,4356.2,4356.1,6.44406048]
[1757349157536,6.15,4356.2,4356.1,10.29716048]
[1757349157950,6.942,4356.2,4356.1,10.0137]
[1757349158255,9.89570299,4356.2,4356.1,3.88]
[1757349158435,11.41790299,4356.2,4356.1,3.88]
[1757349158636,11.12570299,4356.2,4356.1,4.6164]
[1757349158838,8.172,4356.2,4356.1,4.6164]
[1757349159136,10.46757871,4356.2,4356.1,7.26266048]
[1757349159315,8.172,4356.2,4356.1,7.26266048]
[1757349159512,8.172,4356.2,4356.1,10.26266048]
[1757349159712,8.61,4356.2,4356.1,12.55829189]
[1757349160584,8.61,4356.2,4356.1,10.26266048]
[1757349161239,9.84,4356.2,4356.1,10.26266048]
[1757349161678,9.84,4356.2,4356.1,12.55829189]
[1757349162041,9.84,4356.2,4356.1,42.55829189]
[1757349162042,3.83134,4356.2,4356.1,42.55829189]
[1757349162739,5.06134,4356.2,4356.1,42.55829189]
[1757349164241,6.29134,4356.2,4356.1,42.55829189]
[1757349165578,7.52134,4356.2,4356.1,42.55829189]
[1757349166140,7.63574,4356.2,4356.1,40.26266048]
[1757349166478,7.63574,4356.2,4356.1,42.55729189]
[1757349166847,7.63574,4356.2,4356.1,38.69829189]
[1757349167142,8.86574,4356.2,4356.1,42.55729189]
[1757349168081,8.86574,4356.2,4356.1,33.59046048]
[1757349168280,11.17994,4356.2,4356.1,6.879]
[1757349168584,13.47551871,4356.2,4356.1,3.02]
[1757349168768,17.37221271,4356.2,4356.1,3.879]
[1757349169348,17.37221271,4356.2,4356.1,0.022]
[1757349169541,17.37321271,4356.2,4356.1,0.022]
[1757349169748,18.60321271,4356.2,4356.1,3.881]
[1757349170685,18.60321271,4356.2,4356.0,1.761]
[1757349170686,3.08763141,4356.1,4356.0,1.761]
[1757349170856,5.79653938,4356.1,4356.0,1.761]
[1757349171185,9.65643938,4356.1,4356.0,1.761]
[1757349171751,9.65643938,4356.1,4356.0,5.62]
[1757349172579,10.88643938,4356.1,4356.0,5.62]
[1757349173956,12.11643938,4356.1,4356.0,1.761]
[1757349174150,12.11643938,4356.1,4356.0,5.62]
[1757349175457,13.34643938,4356.1,4356.0,5.62]
[1757349176004,13.34643938,4356.1,4356.0,5.621]
[1757349176663,0.792,4355.9,4355.8,0.025]
[1757349176969,0.792,4355.7,4355.6,1.763]
[1757349177171,0.792,4355.7,4355.2,0.002]
[1757349177172,3.08798133,4355.5,4355.4,1.761]
[1757349177498,6.15888133,4355.5,4355.4,1.761]
[1757349177701,7.00435369,4355.5,4355.4,1.761]
[1757349178062,7.00435369,4355.5,4355.4,5.621]
[1757349178376,8.23435369,4355.5,4355.4,5.621]
[1757349179364,8.23435369,4355.5,4355.4,1.761]
[1757349179697,9.46435369,4355.5,4355.4,5.621]
[1757349180966,10.69435369,4355.5,4355.4,5.621]
[1757349181365,10.69435369,4355.5,4355.4,1.761]
[1757349181586,10.69435369,4355.5,4355.4,5.621]
[1757349182079,7.91565369,4355.5,4355.4,5.621]
[1757349182282,9.14565369,4355.5,4355.4,5.621]
[1757349183901,13.15435369,4355.5,4355.4,5.621]
[1757349184500,3.08805308,4355.3,4355.2,0.002]
[1757349184675,3.08805308,4355.3,4355.2,3.862]
[1757349184880,6.15895308,4355.3,4355.2,3.862]
[1757349185186,7.38895308,4355.3,4355.2,3.862]
[1757349186609,5.84025308,4355.3,4355.2,3.862]
[1757349186766,7.21572572,4355.3,4355.2,4.1542]
[1757349187807,8.44572572,4355.3,4355.2,4.1542]
[1757349188110,8.44572572,4355.3,4355.2,3.862]
[1757349188293,8.44572572,4355.3,4355.2,4.1542]
[1757349188879,8.44572572,4355.3,4355.2,3.862]
[1757349189385,9.67572572,4355.3,4355.2,3.862]
[1757349190272,9.97512572,4355.3,4355.2,3.862]
[1757349190711,9.67572572,4355.3,4355.2,4.1542]
[1757349190912,10.90572572,4355.3,4355.2,4.1542]
[1757349192100,10.90572572,4355.3,4355.2,3.862]
[1757349192419,12.13572572,4355.3,4355.2,3.862]
[1757349193404,12.13572572,4355.3,4355.2,4.1542]
[1757349193571,13.36572572,4355.3,4355.2,4.1542]
[1757349193769,10.90605308,4355.3,4355.2,4.1542]
[1757349194092,10.90605308,4355.3,4355.2,6.8849]
[1757349194282,11.69805308,4355.3,4355.2,6.8849]
[1757349194883,12.92805308,4355.3,4355.2,6.8849]
[1757349195430,12.92805308,4355.3,4355.2,4.6221]
[1757349195704,12.92805308,4355.3,4355.2,3.862]
[1757349195879,14.80672119,4355.3,4355.2,3.862]
[1757349196281,16.03672119,4355.3,4355.2,3.862]
[1757349197082,18.45982119,4355.3,4355.2,0.002]
[1757349197288,18.91182119,4355.3,4355.2,3.862]
[1757349197670,20.14182119,4355.3,4355.2,3.862]
[1757349197870,19.68982119,4355.3,4355.2,3.862]
[1757349198128,20.14182119,4355.3,4355.2,3.862]
[1757349199192,20.91982119,4355.3,4355.2,3.862]
[1757349199403,18.49672119,4355.3,4355.2,3.862]
[1757349199795,18.49672119,4355.3,4355.2,4.1542]
[1757349199796,18.19732119,4355.3,4355.2,4.1542]
[1757349200395,19.42732119,4355.3,4355.2,3.862]
[1757349200983,22.14982119,4355.3,4355.2,3.862]
[1757349201221,22.60182119,4355.3,4355.2,0.002]
[1757349201406,22.60182119,4355.3,4355.2,3.862]
[1757349201783,23.83182119,4355.3,4355.2,3.862]
[1757349202119,23.37982119,4355.3,4355.2,3.862]
[1757349202319,20.95672119,4355.3,4355.2,3.862]
[1757349203331,22.18672119,4355.3,4355.2,3.862]
[1757349203485,20.30805308,4355.3,4355.2,6.8849]
[1757349203686,20.30805308,4355.3,4355.2,4.6221]
[1757349203905,20.30805308,4355.3,4355.2,4.1542]
[1757349204139,18.012,4355.3,4355.2,4.6221]
[1757349204340,17.22,4355.3,4355.2,9.8849]
[1757349204484,18.45,4355.3,4355.2,10.16836048]
[1757349204680,18.45,4355.3,4355.2,9.8849]
[1757349204681,21.53805308,4355.3,4355.2,9.8849]
[1757349204926,20.74605308,4355.3,4355.2,3.2942]
[1757349205125,23.38254721,4355.3,4355.2,3.002]
[1757349205323,23.38254721,4355.3,4355.2,6.862]
[1757349205699,23.08314721,4355.3,4355.2,6.862]
[1757349205897,24.31314721,4355.3,4355.2,6.862]
[1757349206407,24.61254721,4355.3,4355.2,6.862]